[Event "GrandPrix_29.05"]
[Site "Chess.com"]
[Date "2020.05.29"]
[Round "1"]
[White "IljaJoke"]
[Black "abraham1982"]
[Result "1/2-1/2"]
[WhiteElo "2308"]
[BlackElo "2050"]
[TimeControl "600+2"]
[EndTime "9:22:09 PDT"]
[Termination "Game drawn by repetition"]

1. d4 {[%clk 0:10:01.9]} 1... Nf6 {[%clk 0:09:53.5]} 2. c4 {[%clk 0:10:02.6]}
2... e6 {[%clk 0:09:51.5]} 3. g3 {[%clk 0:10:02.9]} 3... Bb4+ {[%clk 0:09:49.3]}
4. Bd2 {[%clk 0:10:02.7]} 4... Bxd2+ {[%clk 0:09:47.8]} 5. Qxd2 {[%clk
0:09:58.6]} 5... c5 {[%clk 0:09:46.3]} 6. Nf3 {[%clk 0:09:52.9]} 6... cxd4
{[%clk 0:09:45.1]} 7. Nxd4 {[%clk 0:09:53.7]} 7... Ne4 {[%clk 0:09:43.4]} 8. Qc2
{[%clk 0:09:31]} 8... Qa5+ {[%clk 0:09:36.9]} 9. Nd2 {[%clk 0:08:57.7]} 9...
Nxd2 {[%clk 0:08:48.4]} 10. Qxd2 {[%clk 0:08:59.6]} 10... Qxd2+ {[%clk
0:08:43.6]} 11. Kxd2 {[%clk 0:09:01.5]} 11... Nc6 {[%clk 0:08:42.9]} 12. Nb5
{[%clk 0:08:46.8]} 12... Ke7 {[%clk 0:08:38.6]} 13. Bg2 {[%clk 0:08:45.7]} 13...
a6 {[%clk 0:08:37.4]} 14. Nc3 {[%clk 0:08:37.8]} 14... Rb8 {[%clk 0:08:29.8]}
15. Rhd1 {[%clk 0:07:17.2]} 15... b5 {[%clk 0:08:22.3]} 16. cxb5 {[%clk
0:07:11.1]} 16... axb5 {[%clk 0:08:20.5]} 17. Bxc6 {[%clk 0:07:03.5]} 17... dxc6
{[%clk 0:08:19.1]} 18. Ne4 {[%clk 0:06:56.3]} 18... Rd8+ {[%clk 0:08:17.5]} 19.
Kc2 {[%clk 0:06:23.6]} 19... Rd5 {[%clk 0:08:13.4]} 20. b4 {[%clk 0:05:50.1]}
20... e5 {[%clk 0:08:08.2]} 21. Nc5 {[%clk 0:05:41.2]} 21... Bf5+ {[%clk
0:07:44.7]} 22. e4 {[%clk 0:05:22.5]} 22... Bg6 {[%clk 0:07:42]} 23. Kc3 {[%clk
0:05:15.9]} 23... Rdd8 {[%clk 0:07:32.9]} 24. a4 {[%clk 0:04:54]} 24... Rxd1
{[%clk 0:07:27.4]} 25. Rxd1 {[%clk 0:04:54]} 25... bxa4 {[%clk 0:07:27.7]} 26.
Rd7+ {[%clk 0:04:53.1]} 26... Ke8 {[%clk 0:07:24.6]} 27. Ra7 {[%clk 0:04:47.1]}
27... Bh5 {[%clk 0:06:27.2]} 28. Rxa4 {[%clk 0:04:29.3]} 28... Be2 {[%clk
0:06:25]} 29. Ra7 {[%clk 0:04:29.1]} 29... Rd8 {[%clk 0:06:21.5]} 30. f4 {[%clk
0:04:23.6]} 30... exf4 {[%clk 0:06:17]} 31. gxf4 {[%clk 0:04:25.5]} 31... h6
{[%clk 0:06:16.5]} 32. Rc7 {[%clk 0:04:16.5]} 32... Bb5 {[%clk 0:06:08.9]} 33.
e5 {[%clk 0:04:09.1]} 33... Rd1 {[%clk 0:06:07.9]} 34. Ne4 {[%clk 0:04:04.2]}
34... Kf8 {[%clk 0:04:37]} 35. Nd6 {[%clk 0:03:38.4]} 35... f6 {[%clk
0:04:31.1]} 36. Rc8+ {[%clk 0:02:48.7]} 36... Ke7 {[%clk 0:04:14.9]} 37. Nf5+
{[%clk 0:02:27]} 37... Kd7 {[%clk 0:04:01.2]} 38. Rg8 {[%clk 0:02:28.3]} 38...
fxe5 {[%clk 0:03:59.2]} 39. fxe5 {[%clk 0:02:29.4]} 39... Ke6 {[%clk 0:03:53.7]}
40. Nd4+ {[%clk 0:01:34.5]} 40... Kxe5 {[%clk 0:03:05.7]} 41. Nxb5 {[%clk
0:01:11.4]} 41... cxb5 {[%clk 0:03:00.8]} 42. Rxg7 {[%clk 0:01:12.4]} 42... Kf5
{[%clk 0:02:57]} 43. Rb7 {[%clk 0:01:03.7]} 43... Rd5 {[%clk 0:02:53.7]} 44. Rc7
{[%clk 0:01:04.1]} 44... h5 {[%clk 0:02:20.7]} 45. Rc5 {[%clk 0:01:03.9]} 45...
Ke5 {[%clk 0:02:10.5]} 46. Rxd5+ {[%clk 0:00:52]} 46... Kxd5 {[%clk 0:02:10]}
47. Kd3 {[%clk 0:00:53.5]} 47... Ke5 {[%clk 0:02:00.9]} 48. Ke3 {[%clk
0:00:54.2]} 48... Kd5 {[%clk 0:01:57.1]} 49. Kd3 {[%clk 0:00:55]} 49... Ke5
{[%clk 0:01:47.6]} 50. Ke3 {[%clk 0:00:55.9]} 50... Kd5 {[%clk 0:01:45.4]} 51.
Kd3 {[%clk 0:00:57]} 1/2-1/2

[Event "GrandPrix_29.05"]
[Site "Chess.com"]
[Date "2020.05.29"]
[Round "1"]
[White "Ward-Tsh"]
[Black "Tesla37"]
[Result "0-1"]
[WhiteElo "2187"]
[BlackElo "2679"]
[TimeControl "600+2"]
[EndTime "9:22:15 PDT"]
[Termination "Tesla37 won on time"]

1. e4 {[%clk 0:09:31.1]} 1... c5 {[%clk 0:09:59.8]} 2. Nf3 {[%clk 0:09:31.8]}
2... e6 {[%clk 0:10:00.4]} 3. d4 {[%clk 0:09:31.1]} 3... cxd4 {[%clk 0:10:01.3]}
4. Nxd4 {[%clk 0:09:33]} 4... Nc6 {[%clk 0:10:01.8]} 5. Nc3 {[%clk 0:09:25.4]}
5... a6 {[%clk 0:10:02]} 6. Be3 {[%clk 0:09:11.7]} 6... Nf6 {[%clk 0:10:00.9]}
7. Qd2 {[%clk 0:08:09.6]} 7... e5 {[%clk 0:09:19.3]} 8. Nb3 {[%clk 0:05:58]}
8... Bb4 {[%clk 0:09:13.8]} 9. f3 {[%clk 0:05:56.1]} 9... d5 {[%clk 0:09:11.6]}
10. exd5 {[%clk 0:05:03]} 10... Nxd5 {[%clk 0:09:05.4]} 11. Bd3 {[%clk
0:04:00.9]} 11... Nxe3 {[%clk 0:08:15]} 12. Qxe3 {[%clk 0:04:00.6]} 12... Be6
{[%clk 0:07:11.2]} 13. O-O {[%clk 0:03:49.8]} 13... O-O {[%clk 0:07:00.2]} 14.
Rad1 {[%clk 0:03:45.2]} 14... Qe7 {[%clk 0:06:55]} 15. Kh1 {[%clk 0:03:46.1]}
15... Rad8 {[%clk 0:06:51.9]} 16. Ne4 {[%clk 0:03:42.8]} 16... h6 {[%clk
0:06:28.6]} 17. a3 {[%clk 0:03:41.5]} 17... Bd6 {[%clk 0:06:28.3]} 18. Nbc5
{[%clk 0:03:39.7]} 18... Bc8 {[%clk 0:06:20.9]} 19. Nxd6 {[%clk 0:03:37.6]}
19... Rxd6 {[%clk 0:06:19.5]} 20. Ne4 {[%clk 0:03:37.1]} 20... Rdd8 {[%clk
0:06:15.6]} 21. Rde1 {[%clk 0:03:29.3]} 21... Rfe8 {[%clk 0:06:09.7]} 22. Ng3
{[%clk 0:03:24.2]} 22... Qh4 {[%clk 0:05:51.1]} 23. f4 {[%clk 0:03:13]} 23...
Re7 {[%clk 0:05:14.1]} 24. f5 {[%clk 0:03:06.3]} 24... f6 {[%clk 0:05:10.8]} 25.
Qc5 {[%clk 0:03:00.6]} 25... Qd4 {[%clk 0:05:05.4]} 26. Ne4 {[%clk 0:02:22.8]}
26... Qxb2 {[%clk 0:04:44.6]} 27. Qe3 {[%clk 0:02:17.6]} 27... Qd4 {[%clk
0:04:33.6]} 28. Qg3 {[%clk 0:02:13.9]} 28... Rf8 {[%clk 0:04:31.4]} 29. Rf3
{[%clk 0:01:43.8]} 29... Qd8 {[%clk 0:04:15.8]} 30. c3 {[%clk 0:01:29.1]} 30...
Kh8 {[%clk 0:03:59.1]} 31. Qg4 {[%clk 0:01:26.1]} 31... Rd7 {[%clk 0:03:51.1]}
32. Rg3 {[%clk 0:01:15.9]} 32... Qe7 {[%clk 0:03:49.5]} 33. Rh3 {[%clk
0:00:42.5]} 33... b5 {[%clk 0:03:33.9]} 34. Bc2 {[%clk 0:00:35.6]} 34... Bb7
{[%clk 0:03:32.7]} 35. Rhe3 {[%clk 0:00:22.2]} 35... Na5 {[%clk 0:03:31.6]} 36.
Qe2 {[%clk 0:00:18.8]} 36... Rfd8 {[%clk 0:03:29.1]} 37. h3 {[%clk 0:00:04.2]}
37... Nc4 {[%clk 0:03:23.3]} 38. Rg3 {[%clk 0:00:05]} 38... Nxa3 {[%clk
0:03:17.8]} 39. Bb3 {[%clk 0:00:06.1]} 39... Nc4 {[%clk 0:03:12.6]} 40. Bxc4
{[%clk 0:00:06.4]} 40... bxc4 {[%clk 0:03:13.1]} 41. Qxc4 {[%clk 0:00:08.3]}
41... Rc7 {[%clk 0:03:07.2]} 42. Qe2 {[%clk 0:00:08]} 42... a5 {[%clk
0:03:05.1]} 43. Rg6 {[%clk 0:00:05.8]} 43... Bxe4 {[%clk 0:03:03.3]} 44. Qxe4
{[%clk 0:00:06.4]} 44... Rxc3 {[%clk 0:03:04.6]} 45. Qh4 {[%clk 0:00:04.4]}
45... Kh7 {[%clk 0:03:03.5]} 46. Kh2 {[%clk 0:00:03]} 46... Rc2 {[%clk
0:03:01.5]} 47. Qg3 {[%clk 0:00:03.5]} 47... Rdd2 {[%clk 0:03:00.1]} 48. Rg1
{[%clk 0:00:03.9]} 48... e4 {[%clk 0:02:46]} 49. Rg4 {[%clk 0:00:04.6]} 49... e3
{[%clk 0:02:43.1]} 50. Qb8 {[%clk 0:00:02.4]} 50... e2 {[%clk 0:02:38.2]} 51.
Re1 {[%clk 0:00:02.8]} 51... Rd1 {[%clk 0:02:36.7]} 0-1

[Event "GrandPrix_29.05"]
[Site "Chess.com"]
[Date "2020.05.29"]
[Round "1"]
[White "GM_RobertoMogranzini"]
[Black "Artur0208"]
[Result "0-1"]
[WhiteElo "1606"]
[BlackElo "2297"]
[TimeControl "600+2"]
[EndTime "9:22:18 PDT"]
[Termination "Artur0208 won by resignation"]

1. c4 {[%clk 0:09:55.2]} 1... e6 {[%clk 0:10:00.1]} 2. g3 {[%clk 0:09:55.5]}
2... d5 {[%clk 0:10:01]} 3. Bg2 {[%clk 0:09:56.4]} 3... Nf6 {[%clk 0:10:01.7]}
4. Nf3 {[%clk 0:09:57.1]} 4... dxc4 {[%clk 0:10:02.7]} 5. O-O {[%clk 0:09:57.2]}
5... c5 {[%clk 0:10:01.7]} 6. Na3 {[%clk 0:09:54.7]} 6... Nc6 {[%clk 0:09:57.3]}
7. Nxc4 {[%clk 0:09:54.9]} 7... Qc7 {[%clk 0:09:58.4]} 8. d3 {[%clk 0:09:27.4]}
8... Be7 {[%clk 0:09:58.8]} 9. Bf4 {[%clk 0:09:19.5]} 9... Qd8 {[%clk
0:09:53.3]} 10. Nfe5 {[%clk 0:08:35.5]} 10... Nxe5 {[%clk 0:09:51.2]} 11. Bxe5
{[%clk 0:08:37.4]} 11... O-O {[%clk 0:09:52]} 12. Rc1 {[%clk 0:08:14.9]} 12...
Nd5 {[%clk 0:09:42.4]} 13. a4 {[%clk 0:07:26.4]} 13... b6 {[%clk 0:09:37.8]} 14.
Qb3 {[%clk 0:06:54.8]} 14... Bb7 {[%clk 0:08:51.5]} 15. Rfd1 {[%clk 0:06:53.3]}
15... f6 {[%clk 0:08:36.4]} 16. Bc3 {[%clk 0:06:51.1]} 16... Qd7 {[%clk
0:08:37]} 17. Be1 {[%clk 0:06:43.3]} 17... Bc6 {[%clk 0:08:25.3]} 18. Ra1 {[%clk
0:06:34.8]} 18... Rfd8 {[%clk 0:08:22]} 19. e4 {[%clk 0:06:17.3]} 19... Nc7
{[%clk 0:07:49.3]} 20. Bh3 {[%clk 0:06:06.6]} 20... Qe8 {[%clk 0:07:39.1]} 21.
Ne3 {[%clk 0:05:42.9]} 21... Bd6 {[%clk 0:06:42]} 22. Bc3 {[%clk 0:05:34.6]}
22... Kh8 {[%clk 0:06:39.3]} 23. Qc2 {[%clk 0:05:12.1]} 23... Qh5 {[%clk
0:06:04.9]} 24. Bg2 {[%clk 0:04:51.7]} 24... Be5 {[%clk 0:06:00.8]} 25. f4
{[%clk 0:03:52.5]} 25... Bd4 {[%clk 0:05:55.6]} 26. Re1 {[%clk 0:03:27.8]} 26...
e5 {[%clk 0:05:42.6]} 27. f5 {[%clk 0:03:24.2]} 27... Rd7 {[%clk 0:05:37.6]} 28.
Kh1 {[%clk 0:03:24]} 28... Rad8 {[%clk 0:05:38.5]} 29. Rad1 {[%clk 0:02:47.2]}
29... Bxe3 {[%clk 0:05:29.7]} 30. Rxe3 {[%clk 0:02:48]} 30... c4 {[%clk
0:02:36.8]} 31. b3 {[%clk 0:02:46.1]} 31... cxb3 {[%clk 0:02:23.1]} 32. Qxb3
{[%clk 0:02:44.1]} 32... Na6 {[%clk 0:02:24.5]} 33. g4 {[%clk 0:00:51.6]} 33...
Qxg4 {[%clk 0:02:08.1]} 34. Rg3 {[%clk 0:00:52.3]} 34... Qe2 {[%clk 0:02:08.8]}
35. Re1 {[%clk 0:00:47]} 35... Nc5 {[%clk 0:01:53.2]} 36. Qc4 {[%clk 0:00:33.9]}
36... Qc2 {[%clk 0:01:49.8]} 37. a5 {[%clk 0:00:23.5]} 37... Rxd3 {[%clk
0:01:43.3]} 38. axb6 {[%clk 0:00:21.1]} 38... axb6 {[%clk 0:01:41]} 39. Bf1
{[%clk 0:00:03.2]} 39... Rxg3 {[%clk 0:01:38.7]} 40. hxg3 {[%clk 0:00:05.1]}
40... Bxe4+ {[%clk 0:01:38.9]} 0-1

[Event "GrandPrix_29.05"]
[Site "Chess.com"]
[Date "2020.05.29"]
[Round "1"]
[White "MiroVlasenko"]
[Black "Bengalas"]
[Result "1-0"]
[WhiteElo "2468"]
[BlackElo "1934"]
[TimeControl "600+2"]
[EndTime "9:22:25 PDT"]
[Termination "MiroVlasenko won by resignation"]

1. d4 {[%clk 0:09:53.3]} 1... Nf6 {[%clk 0:10:00.2]} 2. c4 {[%clk 0:09:50.8]}
2... e6 {[%clk 0:10:00.7]} 3. Nc3 {[%clk 0:09:51.3]} 3... Bb4 {[%clk 0:10:01]}
4. e3 {[%clk 0:09:51.8]} 4... b6 {[%clk 0:10:00.2]} 5. Ne2 {[%clk 0:09:52.2]}
5... c5 {[%clk 0:09:30.4]} 6. a3 {[%clk 0:09:36.8]} 6... Ba5 {[%clk 0:09:23.9]}
7. Rb1 {[%clk 0:09:29.5]} 7... Qe7 {[%clk 0:09:02.4]} 8. d5 {[%clk 0:07:56.5]}
8... exd5 {[%clk 0:06:21.8]} 9. cxd5 {[%clk 0:07:47.1]} 9... Bxc3+ {[%clk
0:06:22.4]} 10. Nxc3 {[%clk 0:07:43.4]} 10... O-O {[%clk 0:06:23.8]} 11. Be2
{[%clk 0:06:25.1]} 11... d6 {[%clk 0:06:11.4]} 12. f3 {[%clk 0:06:11.8]} 12...
Ba6 {[%clk 0:05:49.8]} 13. Bxa6 {[%clk 0:06:01.2]} 13... Nxa6 {[%clk 0:05:50.4]}
14. O-O {[%clk 0:05:44.1]} 14... Nd7 {[%clk 0:05:24]} 15. e4 {[%clk 0:05:31.3]}
15... Nc7 {[%clk 0:04:19.5]} 16. b3 {[%clk 0:04:44.1]} 16... f5 {[%clk
0:03:50.4]} 17. exf5 {[%clk 0:03:56]} 17... Rxf5 {[%clk 0:03:50.2]} 18. Rb2
{[%clk 0:03:15.2]} 18... Qf7 {[%clk 0:01:47.3]} 19. Rd2 {[%clk 0:03:01.3]} 19...
Nf6 {[%clk 0:00:47.8]} 20. Bb2 {[%clk 0:02:05]} 20... Nfxd5 {[%clk 0:00:24.5]}
21. Nxd5 {[%clk 0:02:04.8]} 21... Rxd5 {[%clk 0:00:24.5]} 22. Rxd5 {[%clk
0:01:57.4]} 22... Nxd5 {[%clk 0:00:24.9]} 23. Re1 {[%clk 0:01:57.9]} 23... Rd8
{[%clk 0:00:24.5]} 24. Re4 {[%clk 0:01:34.1]} 24... Nf6 {[%clk 0:00:13.9]} 25.
Rf4 {[%clk 0:01:34.6]} 25... Qd5 {[%clk 0:00:14.3]} 26. Qc2 {[%clk 0:01:30.3]}
26... Nh5 {[%clk 0:00:10.6]} 27. Rf5 {[%clk 0:01:28.6]} 27... Qe6 {[%clk
0:00:09.6]} 28. g4 {[%clk 0:01:27.6]} 28... Nf6 {[%clk 0:00:06.7]} 29. Qd2
{[%clk 0:01:19.4]} 29... Re8 {[%clk 0:00:04.9]} 30. Kf2 {[%clk 0:01:18.4]} 30...
Nd7 {[%clk 0:00:03.8]} 31. Rd5 {[%clk 0:01:10.5]} 31... Ne5 {[%clk 0:00:03.6]}
32. Rxd6 {[%clk 0:01:09.3]} 32... Qxb3 {[%clk 0:00:04.6]} 33. Bxe5 {[%clk
0:01:09.3]} 33... Rxe5 {[%clk 0:00:06]} 34. Rd8+ {[%clk 0:01:10.3]} 34... Kf7
{[%clk 0:00:06.5]} 35. Qf4+ {[%clk 0:01:11.7]} 35... Ke6 {[%clk 0:00:06.7]} 36.
Re8+ {[%clk 0:01:11.9]} 1-0

[Event "GrandPrix_29.05"]
[Site "Chess.com"]
[Date "2020.05.29"]
[Round "1"]
[White "Igor_Lysyj"]
[Black "tsvet2005"]
[Result "1-0"]
[WhiteElo "2458"]
[BlackElo "1964"]
[TimeControl "600+2"]
[EndTime "9:22:31 PDT"]
[Termination "Igor_Lysyj won by resignation"]

1. d4 {[%clk 0:09:58.6]} 1... d5 {[%clk 0:10:00.6]} 2. c4 {[%clk 0:09:58.6]}
2... e6 {[%clk 0:10:01.8]} 3. Nf3 {[%clk 0:09:58.7]} 3... Nf6 {[%clk 0:10:02.3]}
4. g3 {[%clk 0:09:59.2]} 4... dxc4 {[%clk 0:10:03]} 5. Bg2 {[%clk 0:09:59.5]}
5... Bb4+ {[%clk 0:10:03.8]} 6. Bd2 {[%clk 0:09:59.6]} 6... a5 {[%clk
0:10:04.6]} 7. a3 {[%clk 0:09:58.4]} 7... Bxd2+ {[%clk 0:10:01.8]} 8. Qxd2
{[%clk 0:09:56.8]} 8... O-O {[%clk 0:09:44.1]} 9. Ne5 {[%clk 0:09:49.9]} 9...
Nc6 {[%clk 0:08:58]} 10. Nxc6 {[%clk 0:09:43.3]} 10... bxc6 {[%clk 0:08:59.9]}
11. O-O {[%clk 0:09:41.9]} 11... Qd6 {[%clk 0:08:31.3]} 12. Rc1 {[%clk
0:09:03.8]} 12... Ba6 {[%clk 0:08:24]} 13. e3 {[%clk 0:08:55]} 13... e5 {[%clk
0:08:10.9]} 14. dxe5 {[%clk 0:08:43.8]} 14... Qxe5 {[%clk 0:08:12.8]} 15. Qc3
{[%clk 0:08:41.4]} 15... Qh5 {[%clk 0:07:45]} 16. Nd2 {[%clk 0:08:31.1]} 16...
Nd5 {[%clk 0:07:32.8]} 17. Qc2 {[%clk 0:07:59.7]} 17... Rab8 {[%clk 0:07:10.8]}
18. Rab1 {[%clk 0:07:29.2]} 18... Qe5 {[%clk 0:05:50.1]} 19. Nxc4 {[%clk
0:06:52.9]} 19... Bxc4 {[%clk 0:05:45.2]} 20. Qxc4 {[%clk 0:06:53]} 20... Rxb2
{[%clk 0:05:36.7]} 21. Rxb2 {[%clk 0:06:46.9]} 21... Qxb2 {[%clk 0:05:38.6]} 22.
Qxc6 {[%clk 0:06:46.7]} 22... Nf6 {[%clk 0:05:20.9]} 23. Qc3 {[%clk 0:06:42.9]}
23... Qb5 {[%clk 0:03:58.3]} 24. Qxc7 {[%clk 0:06:34]} 24... h6 {[%clk
0:03:56.3]} 25. h3 {[%clk 0:06:23.2]} 25... a4 {[%clk 0:03:32.1]} 26. Qc4 {[%clk
0:06:08.2]} 26... Qb2 {[%clk 0:03:29.4]} 27. Qc3 {[%clk 0:06:03.4]} 27... Qb3
{[%clk 0:02:45.7]} 28. e4 {[%clk 0:04:11.5]} 28... Nd7 {[%clk 0:02:07.6]} 29.
Bf1 {[%clk 0:03:46]} 29... Re8 {[%clk 0:01:09.4]} 30. Qxb3 {[%clk 0:01:53.9]}
30... axb3 {[%clk 0:01:11.3]} 31. Bb5 {[%clk 0:01:54.4]} 31... Re7 {[%clk
0:01:08.3]} 32. Kg2 {[%clk 0:01:16.4]} 32... Nf6 {[%clk 0:00:33.1]} 33. Rb1
{[%clk 0:01:12.9]} 33... Rxe4 {[%clk 0:00:21.2]} 34. Rxb3 {[%clk 0:01:13.2]}
34... Re1 {[%clk 0:00:21.4]} 35. Bc4 {[%clk 0:01:10.6]} 35... Ne8 {[%clk
0:00:17]} 36. Rb8 {[%clk 0:01:05.6]} 36... Kf8 {[%clk 0:00:17.8]} 37. Bb5 {[%clk
0:01:05.5]} 1-0

[Event "GrandPrix_29.05"]
[Site "Chess.com"]
[Date "2020.05.29"]
[Round "1"]
[White "BogdanDeac"]
[Black "Sam_ChessMood"]
[Result "1/2-1/2"]
[WhiteElo "2179"]
[BlackElo "2370"]
[TimeControl "600+2"]
[EndTime "9:22:32 PDT"]
[Termination "Game drawn by agreement"]

1. Nf3 {[%clk 0:10:00.5]} 1... d5 {[%clk 0:09:56.9]} 2. d4 {[%clk 0:10:00.7]}
2... Nf6 {[%clk 0:09:51.3]} 3. c4 {[%clk 0:10:01.1]} 3... e6 {[%clk 0:09:48.7]}
4. Bg5 {[%clk 0:09:58.6]} 4... dxc4 {[%clk 0:09:28.9]} 5. e4 {[%clk 0:09:58.2]}
5... c5 {[%clk 0:09:05.7]} 6. Bxc4 {[%clk 0:09:42.4]} 6... cxd4 {[%clk
0:09:01.5]} 7. O-O {[%clk 0:09:37.2]} 7... Nc6 {[%clk 0:08:37.7]} 8. Bb5 {[%clk
0:08:34.8]} 8... Bd7 {[%clk 0:08:30.4]} 9. Bxc6 {[%clk 0:06:58.7]} 9... Bxc6
{[%clk 0:08:29.3]} 10. Nxd4 {[%clk 0:06:56.8]} 10... Rc8 {[%clk 0:06:32]} 11.
Nc3 {[%clk 0:05:33.5]} 11... Be7 {[%clk 0:03:47.9]} 12. Nxc6 {[%clk 0:04:27]}
12... Rxc6 {[%clk 0:03:05.5]} 13. Qxd8+ {[%clk 0:03:24.1]} 13... Bxd8 {[%clk
0:03:06.1]} 14. Rfd1 {[%clk 0:03:21.5]} 14... Ba5 {[%clk 0:02:40.5]} 15. Rac1
{[%clk 0:01:50.5]} 15... Bxc3 {[%clk 0:02:18.8]} 16. Rxc3 {[%clk 0:01:43.7]}
16... Rxc3 {[%clk 0:02:18.1]} 17. bxc3 {[%clk 0:01:45.6]} 17... h6 {[%clk
0:02:00.5]} 18. Be3 {[%clk 0:01:31.1]} 18... Nxe4 {[%clk 0:01:32.5]} 19. Bxa7
{[%clk 0:01:04.2]} 19... Nxc3 {[%clk 0:01:30.3]} 20. Rd3 {[%clk 0:01:03.6]}
20... Nd5 {[%clk 0:00:45.9]} 21. Rb3 {[%clk 0:01:02.3]} 21... b6 {[%clk
0:00:47.1]} 22. Bxb6 {[%clk 0:01:02.4]} 22... Nxb6 {[%clk 0:00:48.2]} 23. Rxb6
{[%clk 0:01:02.8]} 23... Ke7 {[%clk 0:00:49.6]} 24. Rb7+ {[%clk 0:01:01.4]}
24... Kf6 {[%clk 0:00:50.2]} 25. Ra7 {[%clk 0:01:01.5]} 25... Rc8 {[%clk
0:00:47.4]} 26. g3 {[%clk 0:01:02.4]} 26... Rc2 {[%clk 0:00:45.6]} 27. a4 {[%clk
0:01:02.7]} 27... Ra2 {[%clk 0:00:46]} 28. a5 {[%clk 0:01:03.8]} 28... g5 {[%clk
0:00:46.2]} 29. a6 {[%clk 0:01:05]} 29... g4 {[%clk 0:00:46]} 30. Ra8 {[%clk
0:01:05.2]} 30... h5 {[%clk 0:00:42]} 31. a7 {[%clk 0:01:05.5]} 31... Kf5 {[%clk
0:00:37.6]} 32. Rh8 {[%clk 0:00:59.6]} 32... Rxa7 {[%clk 0:00:36.1]} 33. Rxh5+
{[%clk 0:00:59.8]} 33... Kg6 {[%clk 0:00:32]} 34. Rh4 {[%clk 0:00:59.3]} 34...
f5 {[%clk 0:00:31]} 35. h3 {[%clk 0:00:59.3]} 35... gxh3 {[%clk 0:00:29.1]} 36.
Rxh3 {[%clk 0:01:00]} 36... e5 {[%clk 0:00:29.2]} 37. Rh4 {[%clk 0:00:55.8]}
37... Rb7 {[%clk 0:00:28.3]} 38. Kg2 {[%clk 0:00:54.4]} 1/2-1/2

[Event "GrandPrix_29.05"]
[Site "Chess.com"]
[Date "2020.05.29"]
[Round "1"]
[White "VolodymyrMolyboha"]
[Black "ValeriyGrinev"]
[Result "0-1"]
[WhiteElo "2276"]
[BlackElo "2052"]
[TimeControl "600+2"]
[EndTime "9:22:33 PDT"]
[Termination "ValeriyGrinev won by resignation"]

1. e4 {[%clk 0:09:52.8]} 1... c5 {[%clk 0:09:51.7]} 2. Nf3 {[%clk 0:09:51.2]}
2... e6 {[%clk 0:09:51.2]} 3. c3 {[%clk 0:09:48.6]} 3... Nf6 {[%clk 0:09:49.8]}
4. d3 {[%clk 0:09:47.5]} 4... d5 {[%clk 0:09:41.8]} 5. Nbd2 {[%clk 0:09:45.8]}
5... Nc6 {[%clk 0:09:39.8]} 6. g3 {[%clk 0:09:34.3]} 6... Be7 {[%clk 0:09:05.3]}
7. Bg2 {[%clk 0:09:33]} 7... O-O {[%clk 0:09:04.3]} 8. O-O {[%clk 0:09:33.5]}
8... b5 {[%clk 0:09:03.2]} 9. Re1 {[%clk 0:09:33.8]} 9... Bb7 {[%clk 0:08:59.6]}
10. Qe2 {[%clk 0:09:33.5]} 10... Qc7 {[%clk 0:08:40.5]} 11. e5 {[%clk
0:09:25.2]} 11... Nd7 {[%clk 0:08:38.8]} 12. Nf1 {[%clk 0:09:26.2]} 12... Rfc8
{[%clk 0:08:30.7]} 13. Bf4 {[%clk 0:09:24.6]} 13... a5 {[%clk 0:08:25.9]} 14. h4
{[%clk 0:09:23.7]} 14... b4 {[%clk 0:07:26.9]} 15. h5 {[%clk 0:09:23.2]} 15...
h6 {[%clk 0:07:26.1]} 16. N1h2 {[%clk 0:09:22.9]} 16... bxc3 {[%clk 0:07:09.7]}
17. bxc3 {[%clk 0:09:22.7]} 17... Qd8 {[%clk 0:07:11.2]} 18. Ng4 {[%clk
0:09:21.2]} 18... Bf8 {[%clk 0:06:54.9]} 19. Qd2 {[%clk 0:08:52]} 19... Rab8
{[%clk 0:06:06.6]} 20. Rab1 {[%clk 0:08:30.3]} 20... Ba6 {[%clk 0:06:03.1]} 21.
Bf1 {[%clk 0:08:25.7]} 21... Ne7 {[%clk 0:05:18.4]} 22. Nh4 {[%clk 0:07:45.4]}
22... Rxb1 {[%clk 0:04:21.7]} 23. Rxb1 {[%clk 0:07:44]} 23... Rb8 {[%clk
0:04:23.6]} 24. Rxb8 {[%clk 0:07:43.5]} 24... Nxb8 {[%clk 0:04:25.2]} 25. Be2
{[%clk 0:07:26.8]} 25... Nd7 {[%clk 0:03:52.7]} 26. Kh2 {[%clk 0:07:07.7]} 26...
a4 {[%clk 0:03:23.7]} 27. Bd1 {[%clk 0:06:51.3]} 27... Qa5 {[%clk 0:03:13.7]}
28. Bc2 {[%clk 0:05:26.4]} 28... a3 {[%clk 0:02:08.2]} 29. Bb1 {[%clk
0:04:45.9]} 29... d4 {[%clk 0:01:35]} 30. c4 {[%clk 0:04:32.2]} 30... Qb6 {[%clk
0:01:09.3]} 31. Qc2 {[%clk 0:04:10.9]} 31... Nf5 {[%clk 0:01:09.8]} 32. Bc1
{[%clk 0:04:01.7]} 32... Nxh4 {[%clk 0:01:10.3]} 33. gxh4 {[%clk 0:04:02.2]}
33... Qc6 {[%clk 0:01:04.5]} 34. Qd1 {[%clk 0:03:24.6]} 34... Bb7 {[%clk
0:01:01.9]} 35. Qg1 {[%clk 0:03:25.4]} 35... Kh8 {[%clk 0:00:55.4]} 36. Bc2
{[%clk 0:02:55]} 36... Qf3 {[%clk 0:00:49.7]} 37. Bxa3 {[%clk 0:01:10.3]} 37...
Nxe5 {[%clk 0:00:41.2]} 38. Bd1 {[%clk 0:01:10.9]} 38... Nxg4+ {[%clk
0:00:35.6]} 39. Qxg4 {[%clk 0:01:11.7]} 39... Bd6+ {[%clk 0:00:31.4]} 0-1